[Event "GrandPrix_29.05"]
[Site "Chess.com"]
[Date "2020.05.29"]
[Round "7"]
[White "GMStefanova"]
[Black "Petriashvili02"]
[Result "0-1"]
[WhiteElo "2273"]
[BlackElo "2264"]
[TimeControl "600+2"]
[EndTime "12:30:21 PDT"]
[Termination "Petriashvili02 won by resignation"]

1. d4 {[%clk 0:10:01.9]} 1... Nf6 {[%clk 0:10:01.1]} 2. Nf3 {[%clk 0:10:02.4]}
2... g6 {[%clk 0:10:02.6]} 3. g3 {[%clk 0:10:02.7]} 3... Bg7 {[%clk 0:10:03.9]}
4. Bg2 {[%clk 0:10:04]} 4... d5 {[%clk 0:10:05.5]} 5. O-O {[%clk 0:10:04.3]}
5... c6 {[%clk 0:10:06.3]} 6. Bf4 {[%clk 0:09:59.4]} 6... O-O {[%clk 0:10:07.4]}
7. Qc1 {[%clk 0:09:58.9]} 7... Re8 {[%clk 0:10:07.9]} 8. c4 {[%clk 0:09:45.7]}
8... Bf5 {[%clk 0:09:48.3]} 9. Rd1 {[%clk 0:09:33.4]} 9... Nbd7 {[%clk
0:09:46.5]} 10. Ne5 {[%clk 0:08:37.8]} 10... Be6 {[%clk 0:09:41.9]} 11. cxd5
{[%clk 0:08:15.7]} 11... Nxd5 {[%clk 0:09:43.8]} 12. Bh6 {[%clk 0:08:11.9]}
12... Nxe5 {[%clk 0:08:52.8]} 13. dxe5 {[%clk 0:08:02.9]} 13... Qc7 {[%clk
0:08:52.1]} 14. Bxg7 {[%clk 0:07:58]} 14... Kxg7 {[%clk 0:08:54]} 15. e4 {[%clk
0:07:49.5]} 15... Nb6 {[%clk 0:08:54.8]} 16. f4 {[%clk 0:07:40.6]} 16... Rad8
{[%clk 0:08:51]} 17. Nd2 {[%clk 0:07:24.3]} 17... Rd7 {[%clk 0:08:27.6]} 18. Nf3
{[%clk 0:07:09.2]} 18... Bg4 {[%clk 0:08:18.4]} 19. Qc3 {[%clk 0:07:01.5]} 19...
Rxd1+ {[%clk 0:08:18]} 20. Rxd1 {[%clk 0:07:01.4]} 20... Bxf3 {[%clk 0:08:18.8]}
21. e6+ {[%clk 0:06:50.5]} 21... f6 {[%clk 0:08:19.7]} 22. Bxf3 {[%clk
0:06:50.6]} 22... Rd8 {[%clk 0:08:20.8]} 23. Rxd8 {[%clk 0:05:44.9]} 23... Qxd8
{[%clk 0:08:22.7]} 24. Kg2 {[%clk 0:05:29.6]} 24... Qd6 {[%clk 0:08:15]} 25. f5
{[%clk 0:05:27]} 25... Na4 {[%clk 0:07:10.3]} 26. Qc2 {[%clk 0:05:21.1]} 26...
Qd4 {[%clk 0:06:55.8]} 27. b3 {[%clk 0:05:18.4]} 27... Nc5 {[%clk 0:06:45.9]}
28. h4 {[%clk 0:05:04.9]} 28... Nd3 {[%clk 0:06:44.7]} 29. Qd2 {[%clk
0:04:39.5]} 29... c5 {[%clk 0:06:23.7]} 30. g4 {[%clk 0:04:03.9]} 30... Ne5
{[%clk 0:05:24.9]} 31. Qxd4 {[%clk 0:03:53.4]} 31... cxd4 {[%clk 0:05:26.8]} 32.
Bd1 {[%clk 0:03:14.1]} 32... Kh6 {[%clk 0:04:45.4]} 33. Kf2 {[%clk 0:03:00.1]}
33... g5 {[%clk 0:04:42.6]} 34. h5 {[%clk 0:02:56.7]} 34... Kg7 {[%clk
0:04:39.4]} 35. Ke1 {[%clk 0:02:55.5]} 35... Kf8 {[%clk 0:04:32]} 36. h6 {[%clk
0:02:44.7]} 36... Ke8 {[%clk 0:04:32.8]} 37. Kd2 {[%clk 0:02:43.4]} 37... Kd8
{[%clk 0:04:34.2]} 38. Be2 {[%clk 0:02:17.6]} 38... Kc7 {[%clk 0:04:34.7]} 39.
a3 {[%clk 0:02:13.4]} 39... a5 {[%clk 0:04:35.4]} 40. Bd1 {[%clk 0:01:43.2]}
40... Kd6 {[%clk 0:04:35.2]} 41. Be2 {[%clk 0:01:43.1]} 41... Kc5 {[%clk
0:04:35.9]} 42. Bd1 {[%clk 0:01:38.4]} 42... b6 {[%clk 0:04:36.3]} 43. Be2
{[%clk 0:01:39]} 43... d3 {[%clk 0:04:27]} 44. Bxd3 {[%clk 0:01:34.2]} 44...
Nxg4 {[%clk 0:04:20.3]} 45. Kc3 {[%clk 0:01:16.8]} 45... Nxh6 {[%clk 0:04:01.9]}
46. e5 {[%clk 0:01:15.1]} 46... Ng8 {[%clk 0:03:56.1]} 47. b4+ {[%clk 0:01:08]}
47... axb4+ {[%clk 0:03:58]} 48. axb4+ {[%clk 0:01:09]} 48... Kc6 {[%clk
0:03:58.4]} 49. Be4+ {[%clk 0:01:07.1]} 49... Kc7 {[%clk 0:03:59.6]} 50. Kd4
{[%clk 0:01:02.5]} 50... h5 {[%clk 0:03:56.7]} 51. Bf3 {[%clk 0:00:56.3]} 51...
fxe5+ {[%clk 0:03:57.2]} 52. Kxe5 {[%clk 0:00:56.3]} 52... Nf6 {[%clk
0:03:58.8]} 53. b5 {[%clk 0:00:53.3]} 53... h4 {[%clk 0:03:57]} 54. Bc6 {[%clk
0:00:43.4]} 54... h3 {[%clk 0:03:51.8]} 55. Bh1 {[%clk 0:00:38.3]} 55... Ng4+
{[%clk 0:03:48.4]} 56. Kd4 {[%clk 0:00:37.1]} 56... Kd6 {[%clk 0:03:48.2]} 57.
Bc6 {[%clk 0:00:32.3]} 57... h2 {[%clk 0:03:46.6]} 58. Bg2 {[%clk 0:00:15]}
58... Nf2 {[%clk 0:03:45.1]} 59. Ke3 {[%clk 0:00:14.5]} 59... h1=Q {[%clk
0:03:45.8]} 60. Bxh1 {[%clk 0:00:15.3]} 60... Nxh1 {[%clk 0:03:47.7]} 61. Kf3
{[%clk 0:00:16.5]} 61... Ke5 {[%clk 0:03:48.7]} 62. f6 {[%clk 0:00:16.3]} 62...
Kxf6 {[%clk 0:03:49.9]} 0-1

[Event "GrandPrix_29.05"]
[Site "Chess.com"]
[Date "2020.05.29"]
[Round "7"]
[White "guylevin1"]
[Black "DaggiGretarsson"]
[Result "1-0"]
[WhiteElo "2105"]
[BlackElo "1987"]
[TimeControl "600+2"]
[EndTime "12:30:24 PDT"]
[Termination "guylevin1 won on time"]

1. c4 {[%clk 0:10:01.9]} 1... g6 {[%clk 0:10:00.4]} 2. Nf3 {[%clk 0:09:58.6]}
2... Bg7 {[%clk 0:10:01.4]} 3. g3 {[%clk 0:10:00]} 3... c5 {[%clk 0:10:01.6]} 4.
Bg2 {[%clk 0:10:01.2]} 4... Nc6 {[%clk 0:10:02.3]} 5. O-O {[%clk 0:10:02.1]}
5... d6 {[%clk 0:09:43.8]} 6. Nc3 {[%clk 0:10:02.3]} 6... Nh6 {[%clk 0:09:02.1]}
7. d4 {[%clk 0:09:52.6]} 7... cxd4 {[%clk 0:09:01.6]} 8. Nxd4 {[%clk 0:09:53.7]}
8... Nxd4 {[%clk 0:08:57]} 9. Bxh6 {[%clk 0:09:54.3]} 9... Nxe2+ {[%clk
0:08:19]} 10. Qxe2 {[%clk 0:09:56.2]} 10... Bxh6 {[%clk 0:08:19.9]} 11. Nd5
{[%clk 0:09:57.4]} 11... Be6 {[%clk 0:08:12.9]} 12. Rad1 {[%clk 0:09:28.8]}
12... Rc8 {[%clk 0:07:44.8]} 13. Rfe1 {[%clk 0:09:12.8]} 13... O-O {[%clk
0:07:36.8]} 14. b3 {[%clk 0:09:10.7]} 14... Re8 {[%clk 0:06:30.1]} 15. h4 {[%clk
0:07:47.5]} 15... Qd7 {[%clk 0:05:19.8]} 16. Bf3 {[%clk 0:06:25.1]} 16... Bxd5
{[%clk 0:04:17.2]} 17. Bxd5 {[%clk 0:06:23.2]} 17... e6 {[%clk 0:04:08.2]} 18.
Bg2 {[%clk 0:06:14.6]} 18... Rc7 {[%clk 0:03:49.2]} 19. a4 {[%clk 0:05:20]}
19... Qe7 {[%clk 0:03:19.5]} 20. Rd3 {[%clk 0:05:11.8]} 20... Rd8 {[%clk
0:02:52.8]} 21. Red1 {[%clk 0:05:10.7]} 21... a5 {[%clk 0:02:47.8]} 22. Kh2
{[%clk 0:04:28.9]} 22... Rc5 {[%clk 0:02:42.2]} 23. Bf3 {[%clk 0:04:23.4]} 23...
Qc7 {[%clk 0:02:36.6]} 24. Kg2 {[%clk 0:04:12.6]} 24... Kf8 {[%clk 0:02:03.4]}
25. h5 {[%clk 0:04:05.1]} 25... g5 {[%clk 0:01:11.3]} 26. Qe4 {[%clk 0:03:46.9]}
26... Kg7 {[%clk 0:00:35.9]} 27. g4 {[%clk 0:02:43.3]} 27... b6 {[%clk
0:00:33.1]} 28. Be2 {[%clk 0:02:39.4]} 28... Qe7 {[%clk 0:00:14]} 29. Rf3 {[%clk
0:02:05.9]} 29... Re5 {[%clk 0:00:02.8]} 30. Qc2 {[%clk 0:02:00.8]} 30... f5
{[%clk 0:00:03.2]} 31. Bd3 {[%clk 0:01:39.7]} 1-0

[Event "GrandPrix_29.05"]
[Site "Chess.com"]
[Date "2020.05.29"]
[Round "7"]
[White "Gareth-Bale11"]
[Black "GM_Levan_Pantsulaia"]
[Result "0-1"]
[WhiteElo "2386"]
[BlackElo "2610"]
[TimeControl "600+2"]
[EndTime "12:30:33 PDT"]
[Termination "GM_Levan_Pantsulaia won by resignation"]

1. d4 {[%clk 0:09:58.9]} 1... Nf6 {[%clk 0:09:59.8]} 2. c4 {[%clk 0:09:59.1]}
2... c5 {[%clk 0:10:00.9]} 3. d5 {[%clk 0:09:58.1]} 3... e6 {[%clk 0:10:02.4]}
4. Nc3 {[%clk 0:09:57.1]} 4... exd5 {[%clk 0:10:04]} 5. cxd5 {[%clk 0:09:59]}
5... d6 {[%clk 0:10:05.3]} 6. e4 {[%clk 0:09:59.7]} 6... g6 {[%clk 0:10:06.7]}
7. f4 {[%clk 0:10:00.3]} 7... Bg7 {[%clk 0:10:07.9]} 8. Bb5+ {[%clk 0:09:59.2]}
8... Nfd7 {[%clk 0:10:08.4]} 9. Bd3 {[%clk 0:09:55.7]} 9... O-O {[%clk
0:10:06.6]} 10. Nf3 {[%clk 0:09:55.5]} 10... Nb6 {[%clk 0:09:18.3]} 11. h3
{[%clk 0:09:31.6]} 11... f5 {[%clk 0:08:20.2]} 12. O-O {[%clk 0:08:27.9]} 12...
Na6 {[%clk 0:08:17.5]} 13. e5 {[%clk 0:08:00.5]} 13... Nb4 {[%clk 0:07:46.4]}
14. a3 {[%clk 0:06:45.5]} 14... dxe5 {[%clk 0:07:44.9]} 15. axb4 {[%clk
0:06:31.7]} 15... cxb4 {[%clk 0:07:44.2]} 16. fxe5 {[%clk 0:05:39.2]} 16... bxc3
{[%clk 0:07:42]} 17. d6 {[%clk 0:05:40.3]} 17... cxb2 {[%clk 0:07:17.8]} 18.
Qb3+ {[%clk 0:05:35]} 18... Kh8 {[%clk 0:07:12.3]} 19. Bxb2 {[%clk 0:05:35.9]}
19... Qe8 {[%clk 0:06:26.8]} 20. Rfe1 {[%clk 0:04:47.4]} 20... Be6 {[%clk
0:06:26.1]} 21. Qd1 {[%clk 0:04:48.3]} 21... Nd7 {[%clk 0:05:27.7]} 22. Ng5
{[%clk 0:04:12]} 22... Bg8 {[%clk 0:05:26.3]} 23. Qe2 {[%clk 0:03:51.8]} 23...
Qd8 {[%clk 0:05:10.9]} 24. Nf3 {[%clk 0:03:39.1]} 24... Nc5 {[%clk 0:05:01.4]}
25. Bc4 {[%clk 0:03:30.8]} 25... Bxc4 {[%clk 0:03:44.4]} 26. Qxc4 {[%clk
0:03:30.7]} 26... Ne4 {[%clk 0:03:46.1]} 27. Rxe4 {[%clk 0:03:18.6]} 27... fxe4
{[%clk 0:03:44.1]} 28. Qxe4 {[%clk 0:03:20.5]} 28... a5 {[%clk 0:03:08]} 29. Bd4
{[%clk 0:03:13.1]} 29... a4 {[%clk 0:02:22.7]} 30. Qxb7 {[%clk 0:03:12.4]} 30...
a3 {[%clk 0:02:21.3]} 31. Qb3 {[%clk 0:02:40.7]} 31... Qa5 {[%clk 0:02:17.4]}
32. Kh2 {[%clk 0:01:59.3]} 32... a2 {[%clk 0:01:56.5]} 33. Bc3 {[%clk
0:00:54.6]} 33... Rxf3 {[%clk 0:01:46.1]} 34. gxf3 {[%clk 0:00:17]} 34... Bxe5+
{[%clk 0:01:45.6]} 35. Bxe5+ {[%clk 0:00:18.4]} 35... Qxe5+ {[%clk 0:01:45.7]}
0-1

[Event "GrandPrix_29.05"]
[Site "Chess.com"]
[Date "2020.05.29"]
[Round "7"]
[White "Eltaj_Safarli"]
[Black "SuperFineHipster"]
[Result "1-0"]
[WhiteElo "2471"]
[BlackElo "2168"]
[TimeControl "600+2"]
[EndTime "12:30:40 PDT"]
[Termination "Eltaj_Safarli won by resignation"]

1. e4 {[%clk 0:10:01.9]} 1... e5 {[%clk 0:09:54.9]} 2. Nf3 {[%clk 0:10:02]} 2...
Nc6 {[%clk 0:09:56]} 3. Bb5 {[%clk 0:10:03.2]} 3... a6 {[%clk 0:09:52.1]} 4. Ba4
{[%clk 0:10:04.4]} 4... Nf6 {[%clk 0:09:50.7]} 5. Nc3 {[%clk 0:10:05.6]} 5... d6
{[%clk 0:09:39.2]} 6. Bxc6+ {[%clk 0:10:06.4]} 6... bxc6 {[%clk 0:09:40.3]} 7.
d4 {[%clk 0:10:08.3]} 7... exd4 {[%clk 0:09:36.7]} 8. Qxd4 {[%clk 0:10:10.2]}
8... c5 {[%clk 0:09:28.3]} 9. Qd3 {[%clk 0:10:11]} 9... Be7 {[%clk 0:09:28.6]}
10. Bf4 {[%clk 0:10:10.2]} 10... O-O {[%clk 0:09:20.8]} 11. O-O-O {[%clk
0:10:09.4]} 11... Bb7 {[%clk 0:08:40.1]} 12. e5 {[%clk 0:09:39.9]} 12... dxe5
{[%clk 0:08:35.7]} 13. Qc4 {[%clk 0:08:53]} 13... Qc8 {[%clk 0:08:25.3]} 14.
Nxe5 {[%clk 0:08:48]} 14... Qf5 {[%clk 0:07:55]} 15. Nd3 {[%clk 0:07:58.9]}
15... Rad8 {[%clk 0:05:58.8]} 16. Be3 {[%clk 0:07:24.8]} 16... Ng4 {[%clk
0:04:58.4]} 17. Bxc5 {[%clk 0:06:47.6]} 17... Bxc5 {[%clk 0:04:43.8]} 18. Qxc5
{[%clk 0:06:49.5]} 18... Qxc5 {[%clk 0:03:59.2]} 19. Nxc5 {[%clk 0:06:51.4]}
19... Rxd1+ {[%clk 0:03:29]} 20. Rxd1 {[%clk 0:06:48]} 20... Bxg2 {[%clk
0:03:30.4]} 21. Rg1 {[%clk 0:06:21.1]} 21... Bf3 {[%clk 0:03:24.7]} 22. Rg3
{[%clk 0:06:20.7]} 22... Ne5 {[%clk 0:03:21.3]} 23. Nxa6 {[%clk 0:06:20.9]}
23... h5 {[%clk 0:03:04.4]} 24. Nxc7 {[%clk 0:06:04.3]} 24... h4 {[%clk
0:03:04.9]} 25. Rg5 {[%clk 0:05:49.5]} 25... f6 {[%clk 0:03:05.9]} 26. Rg1
{[%clk 0:05:50.4]} 26... Kf7 {[%clk 0:03:06.3]} 27. a4 {[%clk 0:03:45.2]} 27...
h3 {[%clk 0:03:05.4]} 28. Rg3 {[%clk 0:03:37.3]} 28... Bg2 {[%clk 0:03:04.3]}
29. N7d5 {[%clk 0:03:26.2]} 29... Re8 {[%clk 0:01:09.6]} 30. Ne3 {[%clk
0:03:11.6]} 30... Nf3 {[%clk 0:01:08.2]} 31. Nxg2 {[%clk 0:02:50.3]} 31... hxg2
{[%clk 0:01:02.9]} 32. Rxg2 {[%clk 0:02:52.2]} 32... Re1+ {[%clk 0:01:00.1]} 33.
Nd1 {[%clk 0:02:53.3]} 33... g5 {[%clk 0:00:45.1]} 34. a5 {[%clk 0:02:49.4]}
34... f5 {[%clk 0:00:43.2]} 35. Rg3 {[%clk 0:02:40]} 35... Nd4 {[%clk
0:00:20.1]} 36. Re3 {[%clk 0:02:22.3]} 36... Rh1 {[%clk 0:00:21.1]} 37. h3
{[%clk 0:02:07.6]} 37... g4 {[%clk 0:00:04.8]} 38. hxg4 {[%clk 0:02:07.2]} 38...
fxg4 {[%clk 0:00:06.7]} 39. Re4 {[%clk 0:02:05.6]} 39... Nc6 {[%clk 0:00:07.4]}
40. a6 {[%clk 0:02:03.9]} 40... Rh5 {[%clk 0:00:07.7]} 41. Rc4 {[%clk
0:01:57.8]} 1-0

[Event "GrandPrix_29.05"]
[Site "Chess.com"]
[Date "2020.05.29"]
[Round "7"]
[White "VincentKeymer"]
[Black "VMikhalevski"]
[Result "1-0"]
[WhiteElo "2679"]
[BlackElo "2598"]
[TimeControl "600+2"]
[EndTime "12:30:42 PDT"]
[Termination "VincentKeymer won by resignation"]

1. Nf3 {[%clk 0:10:01.2]} 1... Nf6 {[%clk 0:09:59.6]} 2. c4 {[%clk 0:10:02]}
2... e6 {[%clk 0:09:59.2]} 3. Nc3 {[%clk 0:10:02.7]} 3... d5 {[%clk 0:09:56.4]}
4. e3 {[%clk 0:10:03.9]} 4... Be7 {[%clk 0:09:53.7]} 5. b3 {[%clk 0:10:04.6]}
5... O-O {[%clk 0:09:54]} 6. Bb2 {[%clk 0:10:06.1]} 6... b6 {[%clk 0:09:55]} 7.
cxd5 {[%clk 0:10:01.6]} 7... exd5 {[%clk 0:09:53]} 8. d4 {[%clk 0:10:02.6]} 8...
c5 {[%clk 0:09:46]} 9. Bd3 {[%clk 0:09:49.3]} 9... Bb7 {[%clk 0:09:05.1]} 10.
O-O {[%clk 0:09:47.5]} 10... Na6 {[%clk 0:09:02.6]} 11. Ne2 {[%clk 0:09:42.4]}
11... Nb4 {[%clk 0:08:20.1]} 12. Bb1 {[%clk 0:09:40.9]} 12... Ne4 {[%clk
0:08:19.8]} 13. a3 {[%clk 0:09:30.9]} 13... Na6 {[%clk 0:08:13.2]} 14. dxc5
{[%clk 0:09:17.2]} 14... bxc5 {[%clk 0:08:06.4]} 15. Nf4 {[%clk 0:08:54.8]}
15... Bf6 {[%clk 0:06:59.9]} 16. Bxe4 {[%clk 0:08:28.7]} 16... dxe4 {[%clk
0:06:41.2]} 17. Qxd8 {[%clk 0:08:17.4]} 17... Rfxd8 {[%clk 0:06:21.2]} 18. Bxf6
{[%clk 0:08:16.1]} 18... gxf6 {[%clk 0:06:22.5]} 19. Nh4 {[%clk 0:08:17.6]}
19... Kf8 {[%clk 0:06:08.2]} 20. g4 {[%clk 0:08:15.2]} 20... Rab8 {[%clk
0:05:58.1]} 21. h3 {[%clk 0:07:45.3]} 21... Bc8 {[%clk 0:05:50.1]} 22. Rfb1
{[%clk 0:06:55.4]} 22... Rd6 {[%clk 0:05:11.8]} 23. b4 {[%clk 0:06:38]} 23...
cxb4 {[%clk 0:04:08.7]} 24. axb4 {[%clk 0:06:39.9]} 24... Rxb4 {[%clk 0:04:09]}
25. Rxb4 {[%clk 0:06:19.5]} 25... Nxb4 {[%clk 0:04:08.1]} 26. Rxa7 {[%clk
0:06:21]} 26... Ra6 {[%clk 0:03:56]} 27. Rc7 {[%clk 0:06:09.9]} 27... Rc6 {[%clk
0:03:54.7]} 28. Rxc6 {[%clk 0:06:08.2]} 28... Nxc6 {[%clk 0:03:54.7]} 29. Nh5
{[%clk 0:06:09.7]} 29... Ke7 {[%clk 0:03:46.7]} 30. Ng3 {[%clk 0:06:08.7]} 30...
Ne5 {[%clk 0:03:14.2]} 31. Nxe4 {[%clk 0:06:07.5]} 31... Ng6 {[%clk 0:03:14.8]}
32. Nxg6+ {[%clk 0:05:32.9]} 32... fxg6 {[%clk 0:03:03.9]} 33. Ng3 {[%clk
0:05:29.8]} 33... Kd6 {[%clk 0:02:51.8]} 34. f3 {[%clk 0:05:09.9]} 34... Bb7
{[%clk 0:02:49]} 35. Kf2 {[%clk 0:05:10.2]} 35... Ke5 {[%clk 0:02:44.2]} 36. f4+
{[%clk 0:04:52.4]} 36... Kd6 {[%clk 0:02:40.9]} 37. h4 {[%clk 0:04:46.5]} 37...
h6 {[%clk 0:01:52.9]} 38. e4 {[%clk 0:04:21]} 38... Bc8 {[%clk 0:01:36.2]} 39.
Kf3 {[%clk 0:04:18.9]} 39... Ke7 {[%clk 0:01:25.8]} 40. g5 {[%clk 0:03:40.4]}
40... hxg5 {[%clk 0:01:20.9]} 41. hxg5 {[%clk 0:03:40.7]} 41... fxg5 {[%clk
0:01:21.9]} 42. fxg5 {[%clk 0:03:42.6]} 42... Kd6 {[%clk 0:01:20.2]} 43. Kf4
{[%clk 0:03:42.2]} 43... Ba6 {[%clk 0:01:17.7]} 44. Nh1 {[%clk 0:03:39.3]} 44...
Ke6 {[%clk 0:01:00.2]} 45. Nf2 {[%clk 0:03:37.8]} 45... Bf1 {[%clk 0:00:56.7]}
46. Ke3 {[%clk 0:03:30.7]} 46... Bb5 {[%clk 0:00:40.5]} 47. Kd4 {[%clk
0:03:28.1]} 47... Be2 {[%clk 0:00:37.3]} 48. Nh3 {[%clk 0:03:28]} 48... Ba6
{[%clk 0:00:27.1]} 49. Nf4+ {[%clk 0:03:25.1]} 49... Kf7 {[%clk 0:00:28]} 50. e5
{[%clk 0:03:11.2]} 50... Bc8 {[%clk 0:00:15.2]} 51. Kd5 {[%clk 0:03:08.4]} 51...
Bb7+ {[%clk 0:00:14]} 52. Kd6 {[%clk 0:03:09.5]} 52... Be4 {[%clk 0:00:14.5]}
53. e6+ {[%clk 0:03:08.4]} 53... Ke8 {[%clk 0:00:04.5]} 54. Ke5 {[%clk
0:03:07.2]} 54... Bc2 {[%clk 0:00:03.8]} 55. Kf6 {[%clk 0:03:08.2]} 1-0

[Event "GrandPrix_29.05"]
[Site "Chess.com"]
[Date "2020.05.29"]
[Round "7"]
[White "Iljin_Timofey"]
[Black "DariaVoit"]
[Result "0-1"]
[WhiteElo "2258"]
[BlackElo "2219"]
[TimeControl "600+2"]
[EndTime "12:30:44 PDT"]
[Termination "DariaVoit won on time"]

1. d4 {[%clk 0:08:32.1]} 1... Nf6 {[%clk 0:09:58.9]} 2. c4 {[%clk 0:08:32.8]}
2... e6 {[%clk 0:10:00.2]} 3. Nc3 {[%clk 0:08:33.4]} 3... Bb4 {[%clk 0:10:00.6]}
4. e3 {[%clk 0:08:34]} 4... O-O {[%clk 0:10:00.6]} 5. a3 {[%clk 0:08:34.7]} 5...
Bxc3+ {[%clk 0:10:01.1]} 6. bxc3 {[%clk 0:08:36.6]} 6... b6 {[%clk 0:09:56.9]}
7. Bd3 {[%clk 0:08:37.1]} 7... Nc6 {[%clk 0:09:57.4]} 8. Ne2 {[%clk 0:08:39]}
8... Na5 {[%clk 0:09:57.7]} 9. O-O {[%clk 0:08:40.9]} 9... Ba6 {[%clk
0:09:58.2]} 10. e4 {[%clk 0:08:41.4]} 10... Bxc4 {[%clk 0:09:56.9]} 11. Bg5
{[%clk 0:08:41.9]} 11... d6 {[%clk 0:09:48.2]} 12. f4 {[%clk 0:08:41.8]} 12...
Qd7 {[%clk 0:09:45.9]} 13. Bxf6 {[%clk 0:08:42.1]} 13... gxf6 {[%clk 0:09:47.8]}
14. Ng3 {[%clk 0:08:43.5]} 14... Kh8 {[%clk 0:09:38.7]} 15. Nh5 {[%clk
0:08:43.9]} 15... Qe7 {[%clk 0:09:39.1]} 16. e5 {[%clk 0:07:44.3]} 16... fxe5
{[%clk 0:08:57.4]} 17. fxe5 {[%clk 0:07:46.2]} 17... Qg5 {[%clk 0:08:49.8]} 18.
Nf6 {[%clk 0:07:09.3]} 18... Qe3+ {[%clk 0:08:21.5]} 19. Kh1 {[%clk 0:07:09]}
19... Qxd3 {[%clk 0:08:17.9]} 20. Qh5 {[%clk 0:07:00.5]} 20... Qg6 {[%clk
0:08:14.7]} 21. Qh4 {[%clk 0:06:50.7]} 21... Bxf1 {[%clk 0:08:14]} 22. Rxf1
{[%clk 0:06:52.6]} 22... Rg8 {[%clk 0:07:49]} 23. Nxg8 {[%clk 0:06:31.5]} 23...
Rxg8 {[%clk 0:07:50.9]} 24. g3 {[%clk 0:06:32.2]} 24... Nc4 {[%clk 0:07:08.6]}
25. Rf6 {[%clk 0:06:22.9]} 25... Qb1+ {[%clk 0:07:06.8]} 26. Kg2 {[%clk
0:06:23.5]} 26... Ne3+ {[%clk 0:07:08.3]} 27. Kh3 {[%clk 0:06:14.7]} 27... Nf5
{[%clk 0:07:03.6]} 28. Qf4 {[%clk 0:06:10.2]} 28... Rg7 {[%clk 0:06:43]} 29. Qf3
{[%clk 0:05:49.4]} 29... Rg6 {[%clk 0:04:47.1]} 30. g4 {[%clk 0:05:14.4]} 30...
Nh6 {[%clk 0:04:36.7]} 31. Rf4 {[%clk 0:03:15]} 31... Kg7 {[%clk 0:04:09.7]} 32.
Rf6 {[%clk 0:02:43.9]} 32... d5 {[%clk 0:03:40.1]} 33. Rf4 {[%clk 0:02:22]}
33... Qg1 {[%clk 0:03:20.7]} 34. Rf6 {[%clk 0:01:51]} 34... Qxg4+ {[%clk
0:03:16.7]} 35. Qxg4 {[%clk 0:01:51.3]} 35... Nxg4 {[%clk 0:03:14]} 36. Rxg6+
{[%clk 0:01:51.2]} 36... fxg6 {[%clk 0:03:15.6]} 37. Kxg4 {[%clk 0:01:50.9]}
37... c5 {[%clk 0:03:17.5]} 38. Kf4 {[%clk 0:01:16]} 38... cxd4 {[%clk
0:03:19.4]} 39. cxd4 {[%clk 0:01:17.6]} 39... b5 {[%clk 0:03:19.5]} 40. Ke3
{[%clk 0:01:14.9]} 40... a5 {[%clk 0:03:20.1]} 41. Kd3 {[%clk 0:01:16.8]} 41...
g5 {[%clk 0:03:21.1]} 42. Ke3 {[%clk 0:01:02.6]} 42... Kg6 {[%clk 0:03:21.5]}
43. Kf3 {[%clk 0:01:04.5]} 43... h5 {[%clk 0:03:22.6]} 44. Ke3 {[%clk
0:01:04.3]} 44... Kf5 {[%clk 0:03:22.9]} 45. Kf3 {[%clk 0:01:06.2]} 45... b4
{[%clk 0:03:23.5]} 46. axb4 {[%clk 0:01:06.7]} 46... axb4 {[%clk 0:03:25.4]} 47.
Ke3 {[%clk 0:01:07.6]} 47... g4 {[%clk 0:03:27.3]} 48. Kd3 {[%clk 0:01:06.7]}
48... h4 {[%clk 0:03:28.7]} 49. Kc2 {[%clk 0:01:08.6]} 49... g3 {[%clk
0:03:30.1]} 50. hxg3 {[%clk 0:01:10.5]} 50... hxg3 {[%clk 0:03:32]} 51. Kb3
{[%clk 0:01:12.1]} 51... g2 {[%clk 0:03:33.9]} 52. Kxb4 {[%clk 0:01:14]} 52...
g1=Q {[%clk 0:03:35.8]} 53. Kc5 {[%clk 0:01:15.9]} 53... Qf2 {[%clk 0:03:36.8]}
54. Kc6 {[%clk 0:00:13.5]} 54... Qxd4 {[%clk 0:03:36]} 55. Kd6 {[%clk
0:00:15.4]} 55... Qxe5+ {[%clk 0:03:37.4]} 56. Kc6 {[%clk 0:00:16.2]} 56... d4
{[%clk 0:03:38.5]} 57. Kb6 {[%clk 0:00:16.5]} 57... d3 {[%clk 0:03:40.4]} 58.
Kc6 {[%clk 0:00:18.4]} 58... d2 {[%clk 0:03:42.3]} 59. Kb6 {[%clk 0:00:19.9]}
59... d1=Q {[%clk 0:03:44.2]} 60. Kc6 {[%clk 0:00:09.4]} 60... Qc3+ {[%clk
0:03:44.9]} 61. Kb6 {[%clk 0:00:11.3]} 61... Qb1+ {[%clk 0:03:45.9]} 0-1

[Event "GrandPrix_29.05"]
[Site "Chess.com"]
[Date "2020.05.29"]
[Round "7"]
[White "Rakhmanov_Aleksandr"]
[Black "BogdanDeac"]
[Result "0-1"]
[WhiteElo "2387"]
[BlackElo "2410"]
[TimeControl "600+2"]
[EndTime "12:30:59 PDT"]
[Termination "BogdanDeac won by resignation"]

1. d4 {[%clk 0:10:01.9]} 1... Nf6 {[%clk 0:10:00.7]} 2. c4 {[%clk 0:10:01.1]}
2... e6 {[%clk 0:10:00]} 3. Nc3 {[%clk 0:10:02.3]} 3... Bb4 {[%clk 0:10:00.4]}
4. e3 {[%clk 0:10:03.8]} 4... d5 {[%clk 0:10:01]} 5. Nf3 {[%clk 0:10:04.1]} 5...
O-O {[%clk 0:10:01]} 6. Bd2 {[%clk 0:10:05]} 6... Nbd7 {[%clk 0:10:01.1]} 7. a3
{[%clk 0:09:58.4]} 7... Be7 {[%clk 0:09:58.4]} 8. Qc2 {[%clk 0:09:56.4]} 8... c6
{[%clk 0:09:57.1]} 9. Bd3 {[%clk 0:09:52.7]} 9... a6 {[%clk 0:09:49.4]} 10. cxd5
{[%clk 0:09:47.1]} 10... exd5 {[%clk 0:09:44]} 11. g4 {[%clk 0:09:38]} 11... g6
{[%clk 0:09:00.8]} 12. h4 {[%clk 0:08:24.6]} 12... Nxg4 {[%clk 0:08:59.7]} 13.
h5 {[%clk 0:08:25.6]} 13... f5 {[%clk 0:09:00.2]} 14. Ne2 {[%clk 0:08:21.8]}
14... Bd6 {[%clk 0:08:44.3]} 15. hxg6 {[%clk 0:08:05.4]} 15... hxg6 {[%clk
0:08:44.1]} 16. Nf4 {[%clk 0:08:04.8]} 16... Qe8 {[%clk 0:08:05.3]} 17. Nxg6
{[%clk 0:07:10.5]} 17... Qxg6 {[%clk 0:07:47.6]} 18. Nh4 {[%clk 0:07:03]} 18...
Qh5 {[%clk 0:05:45.7]} 19. O-O-O {[%clk 0:06:58.2]} 19... Nxf2 {[%clk 0:05:46]}
20. Rdg1+ {[%clk 0:06:28.6]} 20... Kf7 {[%clk 0:05:37.9]} 21. Bxf5 {[%clk
0:03:54]} 21... Qe2 {[%clk 0:04:55.8]} 22. Bxd7 {[%clk 0:02:34.2]} 22... Nd3+
{[%clk 0:04:31.7]} 23. Kb1 {[%clk 0:02:30.4]} 23... Bxd7 {[%clk 0:04:32.7]} 24.
Rg2 {[%clk 0:01:33.8]} 24... Nf2 {[%clk 0:04:13.7]} 25. Rg7+ {[%clk 0:01:14.6]}
25... Ke6 {[%clk 0:04:04.6]} 26. Rhg1 {[%clk 0:00:18.3]} 26... Ne4 {[%clk
0:01:58.8]} 27. R1g6+ {[%clk 0:00:17.9]} 27... Rf6 {[%clk 0:01:59.1]} 28. Rxf6+
{[%clk 0:00:19]} 28... Kxf6 {[%clk 0:01:59.4]} 29. Rxd7 {[%clk 0:00:16.1]} 29...
Nxd2+ {[%clk 0:01:59.8]} 30. Ka2 {[%clk 0:00:10.2]} 30... Qc4+ {[%clk
0:02:00.1]} 31. Qxc4 {[%clk 0:00:11.6]} 31... Nxc4 {[%clk 0:02:01.6]} 32. Rxb7
{[%clk 0:00:12.5]} 32... Rb8 {[%clk 0:01:51.8]} 33. Rxb8 {[%clk 0:00:12.4]}
33... Bxb8 {[%clk 0:01:53.7]} 34. Ng2 {[%clk 0:00:12.8]} 34... Kf5 {[%clk
0:01:54.9]} 35. b3 {[%clk 0:00:14.2]} 35... Nd6 {[%clk 0:01:53.3]} 36. Kb2
{[%clk 0:00:13.9]} 36... Ke4 {[%clk 0:01:54]} 37. Kc3 {[%clk 0:00:15.4]} 37...
Nf5 {[%clk 0:01:50.4]} 38. Kb4 {[%clk 0:00:15.7]} 38... Nxe3 {[%clk 0:01:47.3]}
39. Nxe3 {[%clk 0:00:16.1]} 39... Kxe3 {[%clk 0:01:48.8]} 40. Kc5 {[%clk
0:00:17.6]} 40... a5 {[%clk 0:01:45.6]} 41. b4 {[%clk 0:00:12.1]} 41... axb4
{[%clk 0:01:43.4]} 42. axb4 {[%clk 0:00:14]} 42... Ke4 {[%clk 0:01:42]} 0-1